fUSD/lending_fUSD_20240615
["ID","MTS","AMOUNT","RATE_DAILY","PERIOD"]
[329522367,1718413853593,-324.58293704,0.00023287,3]
[329522368,1718413853616,-500.0,0.00023287,3]
[329522369,1718413853628,-500.0,0.00023287,3]
[329522370,1718413853644,-500.0,0.00023287,3]
[329522371,1718413853685,-500.0,0.00023287,3]
[329522372,1718413853699,-500.0,0.00023287,3]
[329522373,1718413853712,-500.0,0.00023287,3]
[329522374,1718413853738,-500.0,0.00023287,3]
[329522375,1718413853755,-14526.9864,0.00023459,2]
[329522376,1718413853782,-191.5681893,0.0002355,2]
[329522377,1718413853794,-720.38,0.00023559,3]
[329522378,1718413853809,-500.0,0.00023559,3]
[329522379,1718413853824,-500.0,0.00023559,3]
[329522380,1718413853837,-500.0,0.00023559,3]
[329522381,1718413853848,-500.0,0.00023559,3]
[329522382,1718413853859,-500.0,0.00023559,3]
[329522383,1718413853871,-1539.18,0.00023559,3]
[329522384,1718413853882,-500.0,0.00023559,3]
[329522385,1718413853909,-500.0,0.00023559,3]
[329522386,1718413853930,-654.11,0.00023559,3]
[329522387,1718413853942,-500.0,0.00023559,3]
[329522388,1718413853954,-548.2,0.00023559,3]
[329522389,1718413853971,-500.0,0.00023559,3]
[329522390,1718413853984,-500.0,0.00023559,3]
[329522391,1718413854024,-500.0,0.00023559,3]
[329522392,1718413854037,-500.0,0.00023559,3]
[329522393,1718413854068,-680.13,0.00023559,3]
[329522394,1718413854084,-500.0,0.00023559,3]
[329522395,1718413854099,-500.0,0.00023559,3]
[329522396,1718413854126,-500.0,0.00023559,3]
[329522397,1718413854139,-500.0,0.00023559,3]
[329522398,1718413854152,-500.0,0.00023559,3]
[329522399,1718413854176,-500.0,0.0002356,3]
[329522400,1718413854187,-500.0,0.0002356,3]
[329522401,1718413854213,-500.0,0.0002356,3]
[329522402,1718413854224,-500.0,0.0002356,3]
[329522403,1718413854237,-500.0,0.0002356,3]
[329522404,1718413854249,-500.0,0.0002356,3]
[329522405,1718413854267,-800.84,0.0002356,3]
[329522406,1718413854280,-500.0,0.0002356,3]
[329522407,1718413854312,-500.0,0.0002356,3]
[329522408,1718413854324,-500.0,0.0002356,3]
[329522409,1718413854336,-500.0,0.0002356,3]
[329522410,1718413854349,-500.0,0.0002356,3]
[329522411,1718413854360,-500.0,0.0002356,3]
[329522412,1718413854372,-500.0,0.0002356,3]
[329522413,1718413854384,-500.0,0.0002356,3]
[329522414,1718413854395,-500.0,0.0002356,3]
[329522415,1718413854407,-500.0,0.0002356,3]
[329522416,1718413854418,-500.0,0.0002356,3]
[329522417,1718413854429,-500.0,0.0002356,3]
[329522418,1718413854442,-500.0,0.0002356,3]
[329522419,1718413854453,-500.0,0.0002356,3]
[329522420,1718413854471,-500.0,0.0002356,3]
[329522421,1718413854484,-500.0,0.0002356,3]
[329522422,1718413854500,-150.0,0.0002356,3]
[329522423,1718413854526,-500.0,0.0002356,3]
[329522424,1718413854552,-500.0,0.0002356,3]
[329522425,1718413854577,-500.0,0.0002356,3]
[329522426,1718413854608,-500.0,0.0002356,3]
[329522427,1718413854622,-651.48,0.0002356,3]
[329522428,1718413854640,-513.89444167,0.0002356,3]
[329522429,1718413854665,-500.0,0.0002356,3]
[329522430,1718413854682,-500.0,0.0002356,3]
[329522431,1718413854697,-564.24,0.0002356,3]
[329522432,1718413854712,-276.56281926,0.0002356,3]
[329522433,1718413854727,-500.0,0.0002356,3]
[329522434,1718413854743,-5883.33594992,0.0002356,3]
[329522435,1718413855018,-578.42405008,0.0002356,3]
[329522436,1718413855032,-500.0,0.0002356,3]
[329522437,1718413855053,-840.9,0.0002356,3]
[329522438,1718413855091,-500.0,0.0002356,3]
[329522439,1718413855136,-500.0,0.0002356,3]
[329522440,1718413855151,-500.0,0.0002356,3]
[329522441,1718413855203,-500.0,0.0002356,3]
[329522442,1718413855219,-500.0,0.0002356,3]
[329522443,1718413855233,-500.0,0.0002356,3]
[329522444,1718413855251,-500.0,0.0002356,3]
[329522445,1718413855274,-515.84,0.0002356,3]
[329522446,1718413855308,-500.0,0.0002356,3]
[329522447,1718413855324,-500.0,0.0002356,3]
[329522448,1718413855351,-500.0,0.0002356,3]
[329522449,1718413855391,-684.87,0.0002356,3]
[329522450,1718413855427,-577.27,0.0002356,3]
[329522451,1718413855444,-500.0,0.0002356,3]
[329522452,1718413855461,-721.55,0.0002356,3]
[329522453,1718413855514,-500.0,0.0002356,3]
[329522454,1718413855530,-524.46,0.0002356,3]
[329522455,1718413855564,-500.0,0.0002356,3]
[329522456,1718413855594,-533.25,0.0002356,3]
[329522457,1718413855614,-500.0,0.0002356,3]
[329522458,1718413855626,-500.0,0.0002356,3]
[329522459,1718413855638,-500.0,0.0002356,3]
[329522460,1718413855650,-1083.23,0.0002356,3]
[329522461,1718413855664,-510.58472244,0.0002356,3]
[329522462,1718413855675,-1036.16,0.0002356,3]
[329522463,1718413855691,-500.0,0.0002356,3]
[329522464,1718413855703,-500.0,0.0002356,3]
[329522465,1718413855724,-500.0,0.0002356,3]
[329522466,1718413855758,-599.83,0.0002356,3]
[329522467,1718413855777,-500.0,0.0002356,3]
[329522468,1718413855792,-500.0,0.0002356,3]
[329522469,1718413855807,-1115.4,0.0002356,3]
[329522470,1718413855822,-500.0,0.0002356,3]
[329522471,1718413855839,-500.0,0.0002356,3]
[329522472,1718413855856,-876.93,0.0002356,3]
[329522473,1718413855871,-567.06022916,0.0002356,3]
[329522474,1718413855883,-714.4,0.0002356,3]
[329522475,1718413855900,-500.0,0.0002356,3]
[329522476,1718413855958,-519.48,0.0002356,3]
[329522477,1718413855997,-500.0,0.0002356,3]
[329522478,1718413856013,-1405.79,0.0002356,3]
[329522479,1718413856045,-500.0,0.0002356,3]
[329522480,1718413856075,-4694.65,0.0002356,3]
[329522481,1718413856086,-500.0,0.0002356,3]
[329522482,1718413856113,-2265.1,0.0002356,3]
[329522483,1718413856125,-500.0,0.0002356,3]
[329522484,1718413856146,-465.24,0.0002356,3]
[329522485,1718413856161,-500.0,0.0002356,3]
[329522486,1718413856175,-500.0,0.0002356,3]
[329522487,1718413856187,-500.0,0.0002356,3]
[329522488,1718413856199,-500.0,0.0002356,3]
[329522489,1718413856211,-500.0,0.0002356,3]
[329522490,1718413856233,-500.0,0.0002356,3]
[329522491,1718413856249,-500.0,0.0002356,3]
[329522492,1718413856260,-500.0,0.0002356,3]
[329522493,1718413856271,-500.0,0.0002356,3]
[329522494,1718413856284,-500.0,0.0002356,3]
[329522495,1718413856299,-500.0,0.0002356,3]
[329522496,1718413856314,-500.0,0.0002356,3]
[329522497,1718413856325,-1648.38,0.0002356,3]
[329522498,1718413856337,-501.93,0.0002356,3]
[329522499,1718413856350,-519.34815289,0.0002356,3]
[329522500,1718413856362,-500.0,0.0002356,3]
[329522501,1718413856377,-500.0,0.0002356,3]
[329522502,1718413856390,-1016.71,0.0002356,3]
[329522503,1718413856405,-536.45069117,0.0002356,3]
[329522504,1718413856416,-500.0,0.0002356,3]
[329522505,1718413856429,-500.0,0.0002356,3]
[329522506,1718413856440,-500.0,0.0002356,3]
[329522507,1718413856463,-500.0,0.0002356,3]
[329522508,1718413856476,-1035.28,0.0002356,3]
[329522509,1718413856496,-500.0,0.0002356,3]
[329522510,1718413856510,-500.0,0.0002356,3]
[329522511,1718413856524,-636.87,0.0002356,3]
[329522512,1718413856540,-591.93606189,0.0002356,3]
[329522513,1718413856551,-1662.74,0.0002356,3]
[329522514,1718413856565,-1009.46,0.0002356,3]
[329522515,1718413856576,-1024.21,0.0002356,3]
[329522516,1718413856603,-500.0,0.0002356,3]
[329522517,1718413856616,-1187.67,0.0002356,3]
[329522518,1718413856628,-500.0,0.0002356,3]
[329522519,1718413856641,-500.0,0.0002356,3]
[329522520,1718413856655,-619.31,0.0002356,3]
[329522521,1718413856674,-500.0,0.0002356,3]
[329522522,1718413856691,-500.0,0.00023561,3]
[329522523,1718413856704,-500.0,0.00023561,3]
[329522524,1718413856724,-500.0,0.00023561,3]
[329522525,1718413856736,-500.0,0.00023561,3]
[329522526,1718413856750,-520.3734209,0.00023561,3]
[329522527,1718413856763,-500.0,0.00023561,3]
[329522528,1718413856776,-500.0,0.00023561,3]
[329522529,1718413856795,-500.0,0.00023561,3]
[329522530,1718413856808,-500.0,0.00023561,3]
[329522531,1718413856821,-500.0,0.00023561,3]
[329522532,1718413856840,-500.0,0.00023561,3]
[329522533,1718413856857,-500.0,0.00023561,3]
[329522534,1718413856882,-500.0,0.00023561,3]
[329522535,1718413856897,-500.0,0.00023561,3]
[329522536,1718413856911,-500.0,0.00023561,3]
[329522537,1718413856924,-500.0,0.00023561,3]
[329522538,1718413856937,-500.0,0.00023561,3]
[329522539,1718413856950,-500.0,0.00023561,3]
[329522540,1718413856965,-500.0,0.00023561,3]
[329522541,1718413856980,-499.56906783,0.00023561,3]
[329522542,1718413856993,-500.0,0.00023561,3]
[329522543,1718413857008,-243.96141161,0.00023592,2]
[329522544,1718413857028,-1840.0,0.00023667,2]
[329522545,1718413857048,-720.38,0.00023833,3]
[329522546,1718413857075,-463.30130809,0.00023833,3]
[329522547,1718413857091,-500.0,0.00023833,3]
[329522548,1718413857107,-500.0,0.00023833,3]
[329522549,1718413857125,-500.0,0.00023833,3]
[329522550,1718413857168,-1539.18,0.00023833,3]
[329522551,1718413857186,-500.0,0.00023833,3]
[329522552,1718413857203,-500.0,0.00023833,3]
[329522553,1718413857221,-654.11,0.00023833,3]
[329522554,1718413857234,-356.01602315,0.00023833,3]
[329522555,1718413857248,-500.0,0.00023833,3]
[329522556,1718413857262,-500.0,0.00023833,3]
[329522557,1718413857280,-500.0,0.00023833,3]
[329522558,1718413857302,-680.13,0.00023833,3]
[329522559,1718413857326,-490.44915799,0.00023833,3]
[329522560,1718413857350,-500.0,0.00023833,3]
[329522561,1718413857368,-500.0,0.00023833,3]
[329522562,1718413857389,-500.0,0.00023833,3]
[329522563,1718413857404,-202.28,0.00023834,3]
[329522564,1718413857448,-500.0,0.00023834,3]
[329522565,1718413857462,-500.0,0.00023834,3]
[329522566,1718413857484,-500.0,0.00023834,3]
[329522567,1718413857510,-800.84,0.00023834,3]
[329522568,1718413857540,-500.0,0.00023834,3]
[329522569,1718413857597,-500.0,0.00023834,3]
[329522570,1718413857616,-500.0,0.00023834,3]
[329522571,1718413857644,-500.0,0.00023834,3]
[329522572,1718413857656,-500.0,0.00023834,3]
[329522573,1718413857695,-500.0,0.00023834,3]
[329522574,1718413857715,-500.0,0.00023834,3]
[329522575,1718413857732,-466.44,0.00023834,3]
[329522576,1718413857745,-500.0,0.00023834,3]
[329522577,1718413857801,-500.0,0.00023834,3]
[329522578,1718413857860,-500.0,0.00023834,3]
[329522579,1718413857924,-500.0,0.00023834,3]
[329522580,1718413857940,-500.0,0.00023834,3]
[329522581,1718413857966,-500.0,0.00023834,3]
[329522582,1718413858013,-500.0,0.00023834,3]
[329522583,1718413858036,-500.0,0.00023834,3]
[329522584,1718413858053,-150.0,0.00023834,3]
[329522585,1718413858077,-500.0,0.00023834,3]
[329522586,1718413858100,-500.0,0.00023834,3]
[329522587,1718413858122,-500.0,0.00023834,3]
[329522588,1718413858142,-500.0,0.00023834,3]
[329522589,1718413858157,-651.48,0.00023834,3]
[329522590,1718413858189,-500.0,0.00023834,3]
[329522591,1718413858212,-500.0,0.00023834,3]
[329522592,1718413858223,-564.24,0.00023834,3]
[329522593,1718413858246,-500.0,0.00023834,3]
[329522594,1718413858279,-6461.76,0.00023834,3]
[329522595,1718413858312,-500.0,0.00023834,3]
[329522596,1718413858355,-840.9,0.00023834,3]
[329522597,1718413858402,-500.0,0.00023834,3]
[329522598,1718413858438,-500.0,0.00023834,3]
[329522599,1718413858453,-500.0,0.00023834,3]
[329522600,1718413858480,-500.0,0.00023834,3]
[329522601,1718413858503,-500.0,0.00023834,3]
[329522602,1718413858534,-515.84,0.00023834,3]
[329522603,1718413858559,-500.0,0.00023834,3]
[329522604,1718413858595,-500.0,0.00023834,3]
[329522605,1718413858607,-500.0,0.00023834,3]
[329522606,1718413858618,-684.87,0.00023834,3]
[329522607,1718413858664,-721.55,0.00023834,3]
[329522608,1718413858679,-500.0,0.00023834,3]
[329522609,1718413858848,-524.46,0.00023834,3]
[329522610,1718413858864,-500.0,0.00023834,3]
[329522611,1718413858889,-533.25,0.00023834,3]
[329522612,1718413858900,-500.0,0.00023834,3]
[329522613,1718413858913,-500.0,0.00023834,3]
[329522614,1718413858924,-500.0,0.00023834,3]
[329522615,1718413858944,-1083.23,0.00023834,3]
[329522616,1718413858955,-1036.16,0.00023834,3]
[329522617,1718413858968,-500.0,0.00023834,3]
[329522618,1718413858993,-369.36,0.00023834,3]
[329522619,1718413859026,-500.0,0.00023834,3]
[329522620,1718413859038,-599.83,0.00023834,3]
[329522621,1718413859062,-500.0,0.00023834,3]
[329522622,1718413859074,-500.0,0.00023834,3]
[329522623,1718413859093,-1115.4,0.00023834,3]
[329522624,1718413859148,-500.0,0.00023834,3]
[329522625,1718413859193,-500.0,0.00023834,3]
[329522626,1718413859205,-876.93,0.00023834,3]
[329522627,1718413859219,-714.4,0.00023834,3]
[329522628,1718413859246,-500.0,0.00023834,3]
[329522629,1718413859262,-500.0,0.00023834,3]
[329522630,1718413859274,-1405.79,0.00023834,3]
[329522631,1718413859289,-500.0,0.00023834,3]
[329522632,1718413859344,-4694.65,0.00023834,3]
[329522633,1718413859378,-500.0,0.00023834,3]
[329522634,1718413859391,-2265.1,0.00023834,3]
[329522635,1718413859404,-500.0,0.00023834,3]
[329522636,1718413859419,-426.86,0.00023834,3]
[329522637,1718413859431,-500.0,0.00023834,3]
[329522638,1718413859443,-500.0,0.00023834,3]
[329522639,1718413859454,-500.0,0.00023834,3]
[329522640,1718413859465,-500.0,0.00023834,3]
[329522641,1718413859487,-500.0,0.00023834,3]
[329522642,1718413859503,-500.0,0.00023834,3]
[329522643,1718413859516,-500.0,0.00023834,3]
[329522644,1718413859533,-500.0,0.00023834,3]
[329522645,1718413859544,-500.0,0.00023834,3]
[329522646,1718413859584,-500.0,0.00023834,3]
[329522647,1718413859596,-500.0,0.00023834,3]
[329522648,1718413859611,-1648.38,0.00023834,3]
[329522649,1718413859624,-501.93,0.00023834,3]
[329522650,1718413859640,-500.0,0.00023834,3]
[329522651,1718413859672,-1016.71,0.00023834,3]
[329522652,1718413859685,-500.0,0.00023834,3]
[329522653,1718413859710,-500.0,0.00023834,3]
[329522654,1718413859748,-500.0,0.00023834,3]
[329522655,1718413859772,-1035.28,0.00023834,3]
[329522656,1718413859794,-551.87,0.00023834,3]
[329522657,1718413859841,-500.0,0.00023834,3]
[329522658,1718413859885,-636.87,0.00023834,3]
[329522659,1718413859917,-1662.74,0.00023834,3]
[329522660,1718413859977,-1009.46,0.00023834,3]
[329522661,1718413859998,-1024.21,0.00023834,3]
[329522662,1718413860031,-500.0,0.00023834,3]
[329522663,1718413860046,-1187.67,0.00023834,3]
[329522664,1718413860060,-500.0,0.00023834,3]
[329522665,1718413860074,-500.0,0.00023834,3]
[329522666,1718413860096,-500.0,0.00023834,3]
[329522667,1718413860107,-500.0,0.00023835,3]
[329522668,1718413860122,-500.0,0.00023835,3]
[329522669,1718413860160,-500.0,0.00023835,3]
[329522670,1718413860172,-500.0,0.00023835,3]
[329522671,1718413860186,-500.0,0.00023835,3]
[329522672,1718413860198,-500.0,0.00023835,3]
[329522673,1718413860209,-500.0,0.00023835,3]
[329522674,1718413860240,-500.0,0.00023835,3]
[329522675,1718413860251,-500.0,0.00023835,3]
[329522676,1718413860262,-500.0,0.00023835,3]
[329522677,1718413860277,-500.0,0.00023835,3]
[329522678,1718413860289,-500.0,0.00023835,3]
[329522679,1718413860317,-500.0,0.00023835,3]
[329522680,1718413860350,-500.0,0.00023835,3]
[329522681,1718413860361,-500.0,0.00023835,3]
[329522682,1718413860372,-508.70372821,0.00023835,3]
[329522683,1718413860387,-500.0,0.00023835,3]
[329522684,1718413860398,-500.0,0.00023835,3]
[329522685,1718413860410,-150.03567975,0.00024033,2]
[329522686,1718413860421,-153.80636169,0.00024066,2]
[329522687,1718413860432,-2058.7735572,0.000241,2]
[329522688,1718413860444,-720.38,0.00024107,3]
[329522689,1718413860476,-500.0,0.00024107,3]
[329522690,1718413860491,-500.0,0.00024107,3]
[329522691,1718413860502,-500.0,0.00024107,3]
[329522692,1718413860514,-1539.18,0.00024107,3]
[329522693,1718413860526,-443.09,0.00024107,3]
[329522694,1718413860539,-654.11,0.00024107,3]
[329522695,1718413860551,-500.0,0.00024107,3]
[329522696,1718413860564,-500.0,0.00024107,3]
[329522697,1718413860596,-612.06,0.00024107,3]
[329522698,1718413860609,-680.13,0.00024107,3]
[329522699,1718413860620,-274.12,0.00024107,3]
[329522700,1718413860644,-500.0,0.00024107,3]
[329522701,1718413860657,-500.0,0.00024107,3]
[329522702,1718413860668,-500.0,0.00024108,3]
[329522703,1718413860685,-500.0,0.00024108,3]
[329522704,1718413860696,-500.0,0.00024108,3]
[329522705,1718413860728,-800.84,0.00024108,3]
[329522706,1718413860740,-500.0,0.00024108,3]
[329522707,1718413860752,-511.76151557,0.00024108,3]
[329522708,1718413860763,-500.0,0.00024108,3]
[329522709,1718413860774,-540.27,0.00024108,3]
[329522710,1718413860790,-500.0,0.00024108,3]
[329522711,1718413860820,-500.0,0.00024108,3]
[329522712,1718413860836,-500.0,0.00024108,3]
[329522713,1718413860852,-500.0,0.00024108,3]
[329522714,1718413860872,-500.0,0.00024108,3]
[329522715,1718413860914,-500.0,0.00024108,3]
[329522716,1718413860925,-500.0,0.00024108,3]
[329522717,1718413860973,-500.0,0.00024108,3]
[329522718,1718413861012,-500.0,0.00024108,3]
[329522719,1718413861024,-500.0,0.00024108,3]
[329522720,1718413861041,-500.0,0.00024108,3]
[329522721,1718413861053,-150.0,0.00024108,3]
[329522722,1718413861069,-500.0,0.00024108,3]
[329522723,1718413861080,-500.0,0.00024108,3]
[329522724,1718413861105,-500.0,0.00024108,3]
[329522725,1718413861119,-153.97,0.00024108,3]
[329522726,1718413861146,-651.48,0.00024108,3]
[329522727,1718413861163,-500.0,0.00024108,3]
[329522728,1718413861190,-500.0,0.00024108,3]
[329522729,1718413861210,-564.24,0.00024108,3]
[329522730,1718413861249,-500.0,0.00024108,3]
[329522731,1718413861274,-6461.76,0.00024108,3]
[329522732,1718413861306,-324.28176988,0.00024108,3]
[329522733,1718413861322,-840.9,0.00024108,3]
[329522734,1718413861342,-500.0,0.00024108,3]
[329522735,1718413861354,-500.0,0.00024108,3]
[329522736,1718413861366,-500.0,0.00024108,3]
[329522737,1718413861382,-500.0,0.00024108,3]
[329522738,1718413861393,-515.84,0.00024108,3]
[329522739,1718413861405,-500.0,0.00024108,3]
[329522740,1718413861420,-500.0,0.00024108,3]
[329522741,1718413861432,-500.0,0.00024108,3]
[329522742,1718413861444,-684.87,0.00024108,3]
[329522743,1718413861454,-721.55,0.00024108,3]
[329522744,1718413861468,-500.0,0.00024108,3]
[329522745,1718413861483,-524.46,0.00024108,3]
[329522746,1718413861494,-500.0,0.00024108,3]
[329522747,1718413861507,-533.25,0.00024108,3]
[329522748,1718413861520,-500.0,0.00024108,3]
[329522749,1718413861531,-500.0,0.00024108,3]
[329522750,1718413861563,-500.0,0.00024108,3]
[329522751,1718413861586,-1083.23,0.00024108,3]
[329522752,1718413861596,-1036.16,0.00024108,3]
[329522753,1718413861610,-500.0,0.00024108,3]
[329522754,1718413861627,-633.24,0.00024108,3]
[329522755,1718413861656,-599.83,0.00024108,3]
[329522756,1718413861675,-500.0,0.00024108,3]
[329522757,1718413861695,-500.0,0.00024108,3]
[329522758,1718413861724,-1115.4,0.00024108,3]
[329522759,1718413861744,-260.09996826,0.00024108,3]
[329522760,1718413861764,-876.93,0.00024108,3]
[329522761,1718413861781,-714.4,0.00024108,3]
[329522762,1718413861791,-500.0,0.00024108,3]
[329522763,1718413861804,-1405.79,0.00024108,3]
[329522764,1718413861825,-500.0,0.00024108,3]
[329522765,1718413861839,-1087.71583317,0.00024108,3]
[329522769,1718414415705,720.43,0.00024329,30]
[329522770,1718414420002,500.0,0.00027671,90]
[329522771,1718414420281,189.38256873,0.00027671,90]
[329522772,1718414441019,375.93,0.00012,2]
[329522774,1718414737792,225.26194335,0.00025,30]
[329522775,1718414827128,-156.90145977,0.00013438,2]
[329522776,1718414827158,-153.10027274,0.00013535,3]
[329522777,1718414828339,-48.56847446,0.00013535,3]
[329522778,1718414828370,-252.09193239,0.00013535,2]
[329522779,1718414956170,-100.28236242,0.00013535,2]
[329522780,1718414956223,-376.14,0.00013536,2]
[329522781,1718414956249,-6331.3718409,0.00013537,2]
[329522782,1718414973925,660.39,0.00024329,30]
[329522801,1718415033833,-1414.50725073,0.00013537,2]
[329522802,1718415033846,-4769.42787995,0.00013537,2]
[329522803,1718415033865,-488.56597158,0.00013537,2]
[329522804,1718415034216,-5139.0404386,0.00013537,2]
[329522805,1718415034228,-156.90145977,0.00018448,2]
[329522806,1718415034264,-232.22,0.00020051,2]
[329522807,1718415034302,-1250.0,0.00021,2]
[329522808,1718415034314,-8977.4,0.00021916,2]
[329522809,1718415034326,-250.0,0.00021951,2]
[329522810,1718415034337,-439.43,0.0002202,2]
[329522811,1718415034349,-714.69,0.00022033,2]
[329522812,1718415034361,-250.0,0.00022052,2]
[329522813,1718415034373,-232.22,0.00022314,2]
[329522814,1718415034393,-188.12,0.000226,2]
[329522815,1718415034404,-2167.36997514,0.00022636,2]
[329522816,1718415034437,-465.0,0.00022637,2]
[329522817,1718415034451,-10000.0,0.00022638,2]
[329522818,1718415034462,-500.0,0.00022737,3]
[329522819,1718415034472,-500.0,0.00022737,3]
[329522820,1718415034485,-554.69,0.00022737,3]
[329522821,1718415034500,-500.0,0.00022737,3]
[329522822,1718415034514,-500.0,0.00022737,3]
[329522823,1718415034529,-500.0,0.00022737,3]
[329522824,1718415034548,-500.0,0.00022737,3]
[329522825,1718415034573,-500.0,0.00022737,3]
[329522826,1718415034593,-166.21599563,0.00022737,3]
[329522833,1718415040030,-157.42680086,0.00022636,2]
[329522834,1718415040046,-218.71319917,0.00022737,3]
[329522864,1718415044431,-115.0708052,0.00022737,3]
[329522866,1718415044445,-500.0,0.00022737,3]
[329522868,1718415044476,-500.0,0.00022737,3]
[329522869,1718415044493,-500.0,0.00022737,3]
[329522871,1718415044506,-500.0,0.00022737,3]
[329522874,1718415044537,-500.0,0.00022737,3]
[329522876,1718415044549,-500.0,0.00022737,3]
[329522878,1718415044561,-500.0,0.00022737,3]
[329522880,1718415044574,-60.09958707,0.00022737,3]
[329522885,1718415046215,-385.401005,0.00022737,3]
[329522886,1718415046230,-54.49940793,0.00022737,3]
[329522887,1718415046250,-500.0,0.00022737,3]
[329522888,1718415046264,-212.94744129,0.00022737,3]
[329522889,1718415046611,-287.05255871,0.00022737,3]
[329522890,1718415046624,-500.0,0.00022737,3]
[329522891,1718415046639,-500.0,0.00022737,3]
[329522892,1718415046661,-500.0,0.00022737,3]
[329522893,1718415046673,-500.0,0.00022737,3]
[329522894,1718415046690,-500.0,0.00022737,3]
[329522895,1718415046706,-500.0,0.00022738,3]
[329522896,1718415046724,-500.0,0.00022738,3]
[329522897,1718415046744,-1300.0,0.00023,2]
[329522898,1718415046782,-500.0,0.00023011,3]
[329522899,1718415046796,-500.0,0.00023011,3]
[329522900,1718415046832,-554.69,0.00023011,3]
[329522901,1718415046867,-500.0,0.00023011,3]
[329522902,1718415046887,-500.0,0.00023011,3]
[329522903,1718415046899,-500.0,0.00023011,3]
[329522904,1718415046910,-500.0,0.00023011,3]
[329522905,1718415046933,-500.0,0.00023011,3]
[329522906,1718415046947,-500.0,0.00023011,3]
[329522907,1718415046967,-500.0,0.00023011,3]
[329522908,1718415046982,-500.0,0.00023011,3]
[329522909,1718415046996,-500.0,0.00023011,3]
[329522910,1718415047016,-500.0,0.00023011,3]
[329522911,1718415047028,-500.0,0.00023011,3]
[329522914,1718415047104,-500.0,0.00023011,3]
[329522916,1718415047125,-500.0,0.00023011,3]
[329522918,1718415047137,-500.0,0.00023011,3]
[329522920,1718415047149,-278.25744129,0.00023011,3]
[329522924,1718415047224,-312.68255871,0.00023011,3]
[329522925,1718415047242,-341.33744129,0.00023011,3]
[329522928,1718415047553,-158.66255871,0.00023011,3]
[329522929,1718415047565,-500.0,0.00023011,3]
[329522930,1718415047577,-500.0,0.00023011,3]
[329522931,1718415047589,-500.0,0.00023011,3]
[329522932,1718415047609,-500.0,0.00023011,3]
[329522933,1718415047628,-500.0,0.00023012,3]
[329522934,1718415047648,-500.0,0.00023012,3]
[329522935,1718415047662,-500.0,0.00023285,3]
[329522936,1718415047686,-299.54,0.00023285,3]
[329522937,1718415047699,-554.69,0.00023285,3]
[329522938,1718415047716,-616.71521375,0.00023285,3]
[329522939,1718415047730,-500.0,0.00023285,3]
[329522940,1718415047750,-500.0,0.00023285,3]
[329522941,1718415047762,-500.0,0.00023285,3]
[329522942,1718415047774,-500.0,0.00023285,3]
[329522943,1718415047786,-500.0,0.00023285,3]
[329522944,1718415047798,-500.0,0.00023285,3]
[329522945,1718415047816,-500.0,0.00023285,3]